bitfinex/quotes_BTCUSD_20240617
["timestamp","ask_amount","ask_price","bid_price","bid_amount"]
[1718661241648,0.90285952,66699.0,66698.0,0.28266503]
[1718661242056,0.90285952,66699.0,66698.0,0.19936503]
[1718661242257,0.15322452,66699.0,66698.0,0.21936503]
[1718661242481,0.30315152,66699.0,66698.0,0.37236503]
[1718661242675,0.60300552,66699.0,66698.0,0.36236503]
[1718661242873,0.90285952,66699.0,66698.0,0.28266503]
[1718661243465,0.90285952,66699.0,66698.0,0.30266503]
[1718661243675,0.90285952,66699.0,66698.0,0.19936503]
[1718661245649,0.90285952,66699.0,66698.0,0.21936503]
[1718661246638,0.60300552,66699.0,66698.0,0.21936503]
[1718661248655,0.60300552,66699.0,66698.0,0.22030003]
[1718661249207,0.60385552,66699.0,66698.0,0.35700003]
[1718661249531,0.60385552,66699.0,66698.0,0.37700003]
[1718661249799,0.30400152,66699.0,66698.0,0.37700003]
[1718661250040,0.30400152,66699.0,66698.0,0.35700003]
[1718661250041,0.46378968,66699.0,66698.0,0.35700003]
[1718661250733,0.49862474,66699.0,66698.0,0.37700003]
[1718661251406,0.01400868,66699.0,66698.0,0.37700003]
[1718661257707,0.01400868,66699.0,66698.0,0.52692903]
[1718661258667,0.01400868,66699.0,66698.0,0.37700003]
[1718661261120,0.01400868,66699.0,66698.0,0.52692903]
[1718661261339,0.01400868,66699.0,66698.0,0.37700003]
[1718661261977,0.01400868,66699.0,66698.0,0.36300003]
[1718661262335,0.01400868,66699.0,66698.0,0.90271875]
[1718661262591,0.01400868,66699.0,66698.0,0.89071875]
[1718661262870,0.01400868,66699.0,66698.0,0.90271875]
[1718661263908,0.01400868,66699.0,66698.0,1.01517278]
[1718661264263,0.01400868,66699.0,66698.0,1.04318331]
[1718661264458,0.01400868,66699.0,66698.0,0.91871875]
[1718661264788,0.01400868,66699.0,66698.0,0.90471875]
[1718661265007,0.01400868,66699.0,66698.0,0.91871875]
[1718661267703,0.01400868,66699.0,66698.0,1.21857775]
[1718661270417,0.01400868,66699.0,66698.0,0.91871875]
[1718661271572,0.01400868,66699.0,66698.0,1.21857775]
[1718661271785,0.01400868,66699.0,66698.0,0.91871875]
[1718661274233,0.01400868,66699.0,66698.0,0.90741875]
[1718661285914,0.01400868,66699.0,66698.0,0.83148803]
[1718661287174,0.01400868,66699.0,66698.0,0.53162903]
[1718661287375,0.01400868,66699.0,66698.0,0.38170003]
[1718661293633,0.16393568,66699.0,66698.0,0.38170003]
[1718661295930,0.46378968,66699.0,66698.0,0.38170003]
[1718661296176,0.16393568,66699.0,66698.0,0.38170003]
[1718661297255,0.46378968,66699.0,66698.0,0.38170003]
[1718661302338,0.76364368,66699.0,66698.0,0.38170003]
[1718661302548,0.76364368,66699.0,66698.0,0.36170003]
[1718661302549,0.46378968,66699.0,66698.0,0.36170003]
[1718661302750,0.76364368,66699.0,66698.0,0.36170003]
[1718661302957,0.46378968,66699.0,66698.0,0.36170003]
[1718661303584,0.46378968,66699.0,66698.0,0.38170003]
[1718661303783,0.46378968,66699.0,66698.0,0.36170003]
[1718661305460,0.46378968,66699.0,66698.0,0.38170003]
[1718661305641,0.48240498,66699.0,66698.0,0.36170003]
[1718661306004,0.76364368,66699.0,66698.0,0.36170003]
[1718661306203,0.46378968,66699.0,66698.0,0.36170003]
[1718661306447,0.76364368,66699.0,66698.0,0.36170003]
[1718661306864,0.46378968,66699.0,66698.0,0.38170003]
[1718661307079,0.48246281,66699.0,66698.0,0.38170003]
[1718661307285,0.76364368,66699.0,66698.0,0.36170003]
[1718661307498,0.76364368,66699.0,66698.0,0.38170003]
[1718661308175,0.78231311,66699.0,66698.0,0.38170003]
[1718661308404,0.78231358,66699.0,66698.0,0.38170003]
[1718661308643,0.76364368,66699.0,66698.0,0.38170003]
[1718661309673,0.76364368,66699.0,66698.0,0.36170003]
[1718661309877,0.78231198,66699.0,66698.0,0.36170003]
[1718661310027,0.76364368,66699.0,66698.0,0.36170003]
[1718661310813,0.80565794,66699.0,66698.0,0.36170003]
[1718661311018,0.80565794,66699.0,66698.0,0.20952621]
[1718661311229,1.10551194,66699.0,66698.0,0.20952621]
[1718661311404,1.13274929,66699.0,66698.0,0.20952621]
[1718661311644,1.47758072,66699.0,66698.0,0.042935]
[1718661311844,1.70911888,66699.0,66698.0,0.042935]
[1718661312067,1.40926488,66699.0,66698.0,0.042935]
[1718661312275,1.72234506,66699.0,66698.0,0.042935]
[1718661312399,0.149954,66687.0,66686.0,0.4678]
[1718661312604,0.85414585,66687.0,66686.0,0.62052888]
[1718661312806,0.85414585,66687.0,66681.0,0.00677382]
[1718661312807,0.749827,66682.0,66681.0,0.00677382]
[1718661313108,1.17857741,66682.0,66681.0,0.1595027]
[1718661313314,1.049804,66679.0,66678.0,0.00677382]
[1718661313514,1.049804,66679.0,66678.0,0.1595027]
[1718661313515,1.45417985,66679.0,66678.0,0.1595027]
[1718661314395,1.435504,66679.0,66678.0,0.1595027]
[1718661315424,1.435504,66679.0,66678.0,0.1605027]
[1718661315629,1.735448,66679.0,66678.0,0.15372888]
[1718661315867,1.735448,66679.0,66678.0,0.001]
[1718661316070,1.76726153,66679.0,66678.0,0.001]
[1718661316545,1.76726153,66679.0,66678.0,0.011]
[1718661316546,1.75503535,66679.0,66678.0,0.011]
[1718661317518,1.75503535,66679.0,66678.0,0.01]
[1718661318097,1.049835,66677.0,66676.0,0.00677382]
[1718661319443,1.050835,66677.0,66676.0,0.01077382]
[1718661320565,1.136535,66677.0,66676.0,0.01077382]
[1718661320771,1.436488,66677.0,66676.0,0.01077382]
[1718661321485,1.437488,66677.0,66676.0,0.01077382]
[1718661322430,1.437488,66677.0,66676.0,0.004]
[1718661322637,1.45071418,66677.0,66676.0,0.004]
[1718661324526,1.75066718,66677.0,66676.0,0.004]
[1718661324644,1.45071418,66677.0,66676.0,0.004]
[1718661324850,1.75066718,66677.0,66676.0,0.004]
[1718661325047,1.45071418,66677.0,66676.0,0.004]
[1718661325254,1.60342674,66677.0,66676.0,0.004]
[1718661325488,1.62866378,66677.0,66676.0,0.004]
[1718661325651,2.02861678,66677.0,66676.0,0.004]
[1718661325857,0.01322618,66668.0,66656.0,0.00677382]
[1718661326038,0.535764,66657.0,66656.0,0.00677382]
[1718661326233,1.13585,66657.0,66656.0,0.00677382]
[1718661326484,1.43585,66657.0,66656.0,0.00677382]
[1718661328329,1.43585,66657.0,66656.0,0.00877382]
[1718661328478,1.43685,66657.0,66656.0,0.02077382]
[1718661328888,1.43785,66657.0,66656.0,0.02277382]
[1718661333958,1.737893,66657.0,66656.0,0.02277382]
[1718661334366,1.737893,66657.0,66656.0,0.016]
[1718661334560,1.43785,66657.0,66656.0,0.016]
[1718661335100,1.43785,66657.0,66656.0,0.02277382]
[1718661335302,1.43785,66657.0,66656.0,0.016]
[1718661335303,1.737893,66657.0,66656.0,0.016]
[1718661335639,1.84610441,66657.0,66656.0,0.016]
[1718661337011,1.84510441,66657.0,66656.0,0.002]
[1718661337185,1.89199815,66657.0,66656.0,0.002]
[1718661337372,1.89299815,66657.0,66656.0,0.015]
[1718661337570,1.89199815,66657.0,66656.0,0.013]
[1718661337851,1.36344218,66656.0,66655.0,0.000935]
[1718661337997,1.45842741,66656.0,66655.0,0.000935]
[1718661338220,1.50429697,66656.0,66655.0,0.000935]
[1718661339597,1.5229496,66656.0,66655.0,0.000935]
[1718661339776,1.50529697,66656.0,66655.0,0.002935]
[1718661339951,1.65020123,66656.0,66655.0,0.002935]
[1718661340359,1.6698668,66656.0,66655.0,0.014935]
[1718661340573,1.7698668,66656.0,66655.0,0.014935]
[1718661340774,1.7698668,66656.0,66655.0,0.002935]
[1718661340775,2.0689148,66656.0,66655.0,0.002935]
[1718661340979,2.0689148,66656.0,66655.0,0.000935]
[1718661341201,2.19425914,66656.0,66655.0,0.012935]
[1718661341376,2.19525914,66656.0,66655.0,0.014935]
[1718661341777,1.66351218,66655.0,66654.0,1e-06]
[1718661342078,2.20108944,66655.0,66654.0,1e-06]
[1718661342983,2.20208944,66655.0,66654.0,0.002001]
[1718661345341,2.20308944,66655.0,66654.0,0.002001]
[1718661345926,2.05037688,66655.0,66654.0,0.002001]
[1718661346127,1.92503254,66655.0,66654.0,0.002001]
[1718661346304,2.05037688,66655.0,66654.0,0.002001]
[1718661346503,2.13607688,66655.0,66654.0,0.002001]
[1718661347313,2.13507688,66655.0,66654.0,0.002001]
[1718661347515,2.13607688,66655.0,66654.0,0.002001]
[1718661347717,2.13507688,66655.0,66654.0,1e-06]
[1718661347978,2.16328837,66655.0,66654.0,1e-06]
[1718661348205,2.16428837,66655.0,66654.0,1e-06]
[1718661348411,2.26428837,66655.0,66654.0,1e-06]
[1718661348621,2.16428837,66655.0,66654.0,1e-06]
[1718661349871,2.16439181,66655.0,66654.0,1e-06]
[1718661353617,2.12547137,66655.0,66654.0,1e-06]
[1718661354022,2.12744441,66655.0,66654.0,1e-06]
[1718661354442,2.22744441,66655.0,66654.0,1e-06]
[1718661354647,2.12744441,66655.0,66654.0,1e-06]
[1718661357323,2.22744441,66655.0,66654.0,1e-06]
[1718661358149,2.12744441,66655.0,66654.0,1e-06]
[1718661358543,2.28015697,66655.0,66654.0,1e-06]
[1718661358742,2.38015697,66655.0,66654.0,1e-06]
[1718661358956,2.28015697,66655.0,66654.0,1e-06]
[1718661360800,2.38015697,66655.0,66654.0,1e-06]
[1718661361426,2.99103785,66655.0,66654.0,1e-06]
[1718661361582,3.26520667,66655.0,66654.0,1e-06]
[1718661361781,3.28868094,66655.0,66654.0,1e-06]
[1718661362004,3.33325487,66655.0,66654.0,1e-06]
[1718661362211,3.99325487,66655.0,66654.0,1e-06]
[1718661362387,1.36376618,66640.0,66639.0,0.142]
[1718661362593,1.72569841,66640.0,66639.0,0.142]
[1718661362791,1.350702,66632.0,66631.0,0.009394]
[1718661363016,1.50158989,66632.0,66631.0,0.01616782]
[1718661363412,1.50158989,66632.0,66631.0,0.15626782]
[1718661364390,1.50258989,66632.0,66631.0,0.15626782]
[1718661365630,1.50358989,66632.0,66631.0,0.15626782]
[1718661366578,1.20343389,66632.0,66631.0,0.15626782]
[1718661368184,1.20343389,66632.0,66631.0,0.149494]
[1718661368389,1.50358989,66632.0,66631.0,0.149494]
[1718661368799,1.55215624,66632.0,66631.0,0.149494]
[1718661369228,1.57552182,66632.0,66631.0,0.149494]
[1718661369885,1.57452182,66632.0,66631.0,0.149494]
[1718661370074,1.57352182,66632.0,66631.0,0.149494]
[1718661370484,1.57452182,66632.0,66631.0,0.149494]
[1718661371107,1.55115624,66632.0,66631.0,0.149494]
[1718661371335,1.55215624,66632.0,66631.0,0.149494]
[1718661373108,1.55215624,66632.0,66631.0,0.15626782]
[1718661373528,1.438402,66632.0,66631.0,0.15626782]
[1718661373741,1.58158172,66632.0,66631.0,0.15626782]
[1718661375916,1.45696701,66632.0,66631.0,0.15626782]
[1718661376131,1.58158139,66632.0,66631.0,0.15626782]
[1718661379441,1.62643578,66632.0,66631.0,0.15626782]
[1718661380466,1.64886298,66632.0,66631.0,0.15626782]
[1718661380680,1.64886298,66632.0,66631.0,0.149494]
[1718661381125,1.66208916,66632.0,66631.0,0.149494]
[1718661381349,1.79637079,66632.0,66631.0,0.149494]
[1718661381575,1.706662,66632.0,66631.0,0.149494]
[1718661381801,1.79656351,66632.0,66631.0,0.149494]
[1718661382576,1.706662,66632.0,66631.0,0.149494]
[1718661383455,1.79656351,66632.0,66631.0,0.149494]
[1718661384550,1.79656351,66632.0,66631.0,0.15626782]
[1718661385639,1.706662,66632.0,66631.0,0.15626782]
[1718661388326,1.45162818,66632.0,66631.0,0.15626782]
[1718661389537,1.59449399,66632.0,66631.0,0.15626782]
[1718661389792,1.59449399,66632.0,66631.0,0.149494]
[1718661390188,1.57624414,66632.0,66631.0,0.149494]
[1718661390392,1.56301796,66632.0,66631.0,0.15626782]
[1718661391695,1.438402,66632.0,66631.0,0.15626782]
[1718661391947,1.45665176,66632.0,66631.0,0.15626782]
[1718661392687,1.438402,66632.0,66631.0,0.15626782]
[1718661392890,1.45663291,66632.0,66631.0,0.15626782]
[1718661393334,1.15420298,66632.0,66631.0,0.15626782]
[1718661393539,1.38998098,66632.0,66631.0,0.15626782]
[1718661394484,1.08982498,66632.0,66631.0,0.15626782]
[1718661396832,1.21444037,66632.0,66631.0,0.15626782]
[1718661399903,1.43946473,66632.0,66631.0,0.15626782]
[1718661400248,1.43946235,66632.0,66631.0,0.15626782]
[1718661401280,1.20232618,66632.0,66631.0,0.15626782]
[1718661401466,1.32693976,66632.0,66631.0,0.15626782]
[1718661404447,0.52842656,66632.0,66631.0,0.149494]
[1718661404632,0.51980673,66632.0,66631.0,0.15626782]
[1718661404841,0.79306753,66632.0,66631.0,0.15626782]
[1718661405031,1.00752353,66632.0,66631.0,0.15626782]
[1718661405194,1.09322353,66632.0,66631.0,0.15626782]
[1718661405399,1.20581873,66632.0,66631.0,0.15626782]
[1718661405781,1.09122353,66632.0,66631.0,0.15626782]
[1718661406172,1.18231411,66632.0,66631.0,0.15626782]
[1718661406709,1.18331411,66632.0,66631.0,0.15626782]
[1718661406911,1.18331411,66632.0,66631.0,0.149494]
[1718661407113,1.18331411,66632.0,66631.0,0.15626782]
[1718661407321,1.09322353,66632.0,66631.0,0.15626782]
[1718661407544,1.09407353,66632.0,66631.0,0.15626782]
[1718661407749,1.09846411,66632.0,66631.0,0.15626782]
[1718661407943,1.18416411,66632.0,66631.0,0.15626782]
[1718661408754,1.09407353,66632.0,66631.0,0.15626782]
[1718661409341,0.98178449,66632.0,66631.0,0.15626782]
[1718661409747,1.09763629,66632.0,66631.0,0.15626782]
[1718661410794,0.98177379,66632.0,66631.0,0.15626782]
[1718661411022,1.18714107,66632.0,66631.0,0.15626782]
[1718661411171,1.09707684,66632.0,66631.0,0.15626782]
[1718661412754,1.01137684,66632.0,66631.0,0.15626782]
[1718661412954,1.09707684,66632.0,66631.0,0.17157428]
[1718661413154,0.98177379,66632.0,66631.0,0.15626782]
[1718661413312,0.98177379,66632.0,66631.0,0.15444052]
[1718661413515,1.18776516,66632.0,66631.0,0.15444052]
[1718661413714,0.89607379,66632.0,66631.0,0.15444052]
[1718661413940,0.98167129,66632.0,66631.0,0.15444052]
[1718661414349,1.06723089,66632.0,66631.0,0.15444052]
[1718661414553,0.98167129,66632.0,66631.0,0.15444052]
[1718661414767,0.99969833,66632.0,66631.0,0.15444052]
[1718661415215,1.06722902,66632.0,66631.0,0.15444052]
[1718661415848,0.76707302,66632.0,66631.0,0.15444052]
[1718661416063,0.23113902,66632.0,66631.0,0.17444052]
[1718661416267,0.1906376,66632.0,66631.0,0.49255586]
[1718661416487,0.1906376,66632.0,66631.0,0.34247586]
[1718661416700,0.1906376,66632.0,66631.0,0.79271586]
[1718661416908,0.14562125,66632.0,66631.0,0.79271586]
[1718661417122,0.14562125,66632.0,66631.0,0.34247586]
[1718661417322,0.05876443,66634.0,66633.0,0.02677382]
[1718661417527,0.0407376,66634.0,66633.0,0.8758287]
[1718661417820,0.01802683,66636.0,66635.0,0.62108682]
[1718661417997,0.04138859,66636.0,66635.0,0.3236027]
[1718661418219,0.02336176,66636.0,66635.0,0.33890724]
[1718661418754,0.02336176,66636.0,66635.0,0.48897824]
[1718661419110,0.3,66640.0,66639.0,0.02677382]
[1718661419311,0.3,66640.0,66639.0,0.3198027]
[1718661419518,0.3,66640.0,66639.0,0.33510532]
[1718661420303,0.301,66640.0,66639.0,0.33510532]
[1718661420710,0.302,66640.0,66639.0,0.34810532]
[1718661420912,0.302,66640.0,66639.0,0.32810532]
[1718661421193,0.302,66640.0,66639.0,0.47816732]
[1718661421427,0.302,66640.0,66639.0,0.79829132]
[1718661421610,0.302,66640.0,66639.0,0.49816732]
[1718661424465,0.302,66640.0,66639.0,2.17053932]
[1718661424662,0.302,66640.0,66639.0,1.70923932]
[1718661424862,0.1521,66640.0,66639.0,1.70923932]
[1718661425067,0.1521,66640.0,66639.0,1.80923932]
[1718661425258,0.002,66640.0,66639.0,1.80923932]
[1718661425462,0.001,66640.0,66639.0,1.80923932]
[1718661425776,0.002,66640.0,66639.0,1.81023932]
[1718661426241,0.001,66640.0,66639.0,1.80923932]
[1718661426486,0.00085,66655.0,66654.0,0.02677382]
[1718661426690,0.00085,66655.0,66654.0,0.4746307]
[1718661426827,0.30085,66655.0,66654.0,0.49033085]
[1718661427229,0.30085,66655.0,66654.0,0.34030285]
[1718661427452,0.01149901,66655.0,66654.0,0.34030285]
[1718661428118,0.01149901,66655.0,66654.0,0.49333085]
[1718661428476,0.01149901,66655.0,66654.0,0.34330285]
[1718661428682,0.01149901,66655.0,66654.0,0.35530285]
[1718661432712,0.01149901,66655.0,66654.0,0.80538785]
[1718661433240,0.01149901,66655.0,66654.0,0.33530285]
[1718661433447,0.01149901,66655.0,66654.0,0.50533085]
[1718661435423,0.01149901,66655.0,66654.0,0.80538785]
[1718661435842,0.01149901,66655.0,66654.0,0.33530285]
[1718661436004,0.01149901,66655.0,66654.0,0.80538785]
[1718661436422,0.01149901,66655.0,66654.0,0.50533085]
[1718661436836,0.01149901,66655.0,66654.0,0.80538785]
[1718661438687,0.01149901,66655.0,66654.0,1.09344485]
[1718661439052,0.01249901,66655.0,66654.0,1.10744485]
[1718661439604,0.01149901,66655.0,66654.0,0.79338785]
[1718661439745,0.01149901,66655.0,66654.0,0.80738785]
[1718661440096,0.01249901,66655.0,66654.0,0.80532285]
[1718661440300,0.01249901,66655.0,66654.0,0.81932285]
[1718661440538,0.01334901,66655.0,66654.0,0.81932285]
[1718661440667,0.01334901,66655.0,66654.0,0.80532285]
[1718661441069,0.01334901,66655.0,66654.0,0.81932285]
[1718661441589,0.01334901,66655.0,66654.0,1.11937985]
[1718661442155,0.01334901,66655.0,66654.0,0.81932285]
[1718661445577,0.01334901,66655.0,66654.0,1.11937985]
[1718661445778,0.01334901,66655.0,66654.0,1.22137985]
[1718661449622,0.01334901,66655.0,66654.0,1.11937985]
[1718661449999,0.01334901,66655.0,66654.0,1.52143685]
[1718661450435,0.01334901,66655.0,66654.0,1.22137985]
[1718661454122,0.11043649,66655.0,66654.0,1.22137985]
[1718661454934,0.11042244,66655.0,66654.0,1.22137985]
[1718661457365,0.11042244,66655.0,66654.0,0.92132285]
[1718661458646,0.11042244,66655.0,66654.0,1.22137985]
[1718661459674,0.11042244,66655.0,66654.0,0.51926585]
[1718661460592,0.11042244,66655.0,66654.0,0.81932285]
[1718661461555,0.11042244,66655.0,66654.0,0.51926585]
[1718661463340,0.11042244,66655.0,66654.0,0.36923785]
[1718661467842,0.26044844,66655.0,66654.0,0.36923785]
[1718661468047,0.11042244,66655.0,66654.0,0.36923785]
[1718661468648,0.26044844,66655.0,66654.0,0.36923785]
[1718661472546,0.56050044,66655.0,66654.0,0.36923785]
[1718661474288,0.26044844,66655.0,66654.0,0.36923785]
[1718661476063,0.25874623,66655.0,66654.0,0.36923785]
[1718661483480,0.55879823,66655.0,66654.0,0.36923785]
[1718661484288,1.30100223,66655.0,66654.0,0.05140897]
[1718661484487,1.45972014,66655.0,66654.0,0.05140897]
[1718661484687,1.87048575,66655.0,66654.0,0.03570882]
[1718661485237,1.87048575,66655.0,66654.0,0.028935]
[1718661485439,2.18376393,66655.0,66654.0,0.028935]
[1718661485646,2.20723302,66655.0,66654.0,0.028935]
[1718661486024,2.20675347,66655.0,66654.0,0.014935]
[1718661486856,2.30575347,66655.0,66654.0,0.000935]
[1718661487280,2.30675347,66655.0,66654.0,0.014935]
[1718661487448,2.30675347,66655.0,66654.0,0.025935]
[1718661487654,2.63519768,66655.0,66654.0,0.011935]
[1718661487900,2.56656839,66655.0,66654.0,0.011935]
[1718661488127,2.56656839,66655.0,66654.0,0.013935]
[1718661488295,2.40825429,66655.0,66654.0,0.013935]
[1718661488496,2.40825429,66655.0,66654.0,0.002935]
[1718661488698,2.41125429,66655.0,66654.0,0.003935]
[1718661488901,2.28528438,66655.0,66654.0,0.003935]
[1718661490711,2.41125429,66655.0,66654.0,0.003935]
[1718661490913,2.28528438,66655.0,66654.0,0.00389475]
[1718661493429,2.41125429,66655.0,66654.0,0.00389475]
[1718661493929,2.28528438,66655.0,66654.0,0.00389475]
[1718661494960,2.73806526,66655.0,66654.0,7.5e-07]
[1718661495181,2.96403517,66655.0,66654.0,7.5e-07]
[1718661496054,3.12193517,66655.0,66654.0,7.5e-07]
[1718661496411,3.36031333,66655.0,66654.0,7.5e-07]
[1718661496613,3.30567022,66655.0,66654.0,7.5e-07]
[1718661496972,3.38219769,66655.0,66654.0,7.5e-07]
[1718661498264,3.53491025,66655.0,66654.0,7.5e-07]
[1718661498811,3.52261019,66655.0,66654.0,7.5e-07]
[1718661504011,4.5305873,66655.0,66654.0,7.5e-07]
[1718661504150,3.82156714,66655.0,66654.0,7.5e-07]
[1718661504356,4.55156714,66655.0,66654.0,7.5e-07]
[1718661504551,4.39586714,66655.0,66654.0,7.5e-07]
[1718661504767,1.350702,66632.0,66631.0,0.0075667]
[1718661504960,1.350702,66632.0,66631.0,0.0237581]
[1718661504961,1.52264609,66632.0,66631.0,0.0237581]
[1718661505217,1.619035,66632.0,66631.0,0.0075667]
[1718661505427,1.919191,66632.0,66631.0,0.0075667]
[1718661505634,2.019191,66632.0,66631.0,0.0075667]
[1718661506091,1.719035,66632.0,66631.0,0.0075667]
[1718661506469,1.719035,66632.0,66631.0,0.0215667]
[1718661506666,1.84989559,66632.0,66631.0,0.0215667]
[1718661506873,1.84989559,66632.0,66631.0,0.0075667]
[1718661507083,1.85289559,66632.0,66631.0,0.0075667]
[1718661507332,2.29045159,66632.0,66631.0,0.0195667]
[1718661508329,2.28945159,66632.0,66631.0,0.0075667]
[1718661508665,2.28945159,66632.0,66631.0,0.0125667]
[1718661510899,0.24632418,66623.0,66622.0,0.000935]
[1718661511144,1.31916297,66623.0,66622.0,0.000935]
[1718661511341,1.20543818,66615.0,66614.0,0.009394]
[1718661511548,1.7111329,66615.0,66614.0,0.009394]
[1718661511744,1.69790676,66615.0,66614.0,0.02559358]
[1718661511990,1.71113294,66615.0,66614.0,0.009394]
[1718661513161,1.71113294,66615.0,66614.0,0.021394]
[1718661513162,1.71213294,66615.0,66614.0,0.021394]
[1718661513336,1.71027812,66615.0,66614.0,0.021394]
[1718661513793,1.86299068,66615.0,66614.0,0.021394]
[1718661514979,1.96399068,66615.0,66614.0,0.031394]
[1718661515305,1.94061683,66615.0,66614.0,0.031394]
[1718661520460,1.78790427,66615.0,66614.0,0.031394]
[1718661521413,1.78506938,66615.0,66614.0,0.031394]
[1718661523761,1.68595981,66615.0,66614.0,0.031394]
[1718661523963,0.94409581,66615.0,66614.0,0.169894]
[1718661524168,1.02979581,66615.0,66614.0,0.17666782]
[1718661524370,1.02979581,66615.0,66614.0,0.19302876]
[1718661524371,1.33001638,66615.0,66614.0,0.19302876]
[1718661524661,1.33001638,66615.0,66614.0,0.17666782]
[1718661525278,1.33405824,66615.0,66614.0,0.17666782]
[1718661526355,1.24835824,66615.0,66614.0,0.17666782]
[1718661526530,1.33405824,66615.0,66614.0,0.17666782]
[1718661528513,0.84812624,66615.0,66614.0,0.17666782]
[1718661528714,0.0877,66615.0,66614.0,0.17666782]
[1718661528916,0.538048,66615.0,66614.0,0.17666782]
[1718661529097,0.538048,66615.0,66614.0,0.19301748]
[1718661529651,0.538048,66615.0,66614.0,0.20301748]
[1718661529817,0.538048,66615.0,66614.0,0.19301748]
[1718661530445,0.002,66615.0,66614.0,0.21301748]
[1718661530651,0.002,66615.0,66614.0,0.51325448]
[1718661530850,0.002,66615.0,66614.0,1.11633836]
[1718661531013,0.002,66615.0,66614.0,1.21833836]
[1718661531206,0.002,66615.0,66614.0,1.11633836]
[1718661531408,0.002,66615.0,66614.0,0.81610136]
[1718661531613,0.002,66615.0,66614.0,0.89203208]
[1718661531813,0.450294,66623.0,66622.0,0.14937382]
[1718661532121,0.450294,66623.0,66622.0,0.16570926]
[1718661532338,0.5455668,66623.0,66622.0,0.16570926]
[1718661533098,0.450294,66623.0,66622.0,0.16570926]
[1718661534689,0.450294,66623.0,66622.0,0.17170926]
[1718661534958,0.450294,66623.0,66622.0,0.18470926]
[1718661535099,0.450294,66623.0,66622.0,0.20470926]
[1718661535453,0.450294,66623.0,66622.0,0.18470926]
[1718661536072,0.450294,66623.0,66622.0,0.20470926]
[1718661536951,0.450294,66623.0,66622.0,0.20565526]
[1718661537756,0.300175,66628.0,66626.0,0.00677382]
[1718661537757,0.0857,66627.0,66626.0,0.00677382]
[1718661538079,0.1,66636.0,66635.0,0.00677382]
[1718661538080,0.850345,66636.0,66635.0,0.00677382]
[1718661538318,0.58394208,66636.0,66635.0,0.00677382]
[1718661538515,0.535907,66636.0,66635.0,0.00677382]
[1718661538728,0.750355,66635.0,66634.0,0.00677382]
[1718661538932,0.95362344,66635.0,66634.0,0.00677382]
[1718661539076,0.93013078,66635.0,66634.0,0.00677382]
[1718661540402,0.24414678,66635.0,66634.0,0.00677382]
[1718661540651,0.93013078,66635.0,66634.0,0.00677382]
[1718661540871,0.93013078,66635.0,66634.0,0.08537382]
[1718661541320,0.84743078,66635.0,66634.0,0.14987382]
[1718661541524,0.93413078,66635.0,66634.0,0.14987382]
[1718661541834,0.93413078,66635.0,66634.0,0.1431]
[1718661542040,1.23427278,66635.0,66634.0,0.14987382]
[1718661542366,1.23327278,66635.0,66634.0,0.14987382]
[1718661542530,1.23127278,66635.0,66634.0,0.15587382]
[1718661543127,1.23368712,66635.0,66634.0,0.15587382]
[1718661545465,1.23388282,66635.0,66634.0,0.15587382]
[1718661545860,1.23388282,66635.0,66634.0,0.1491]
[1718661546319,1.23388282,66635.0,66634.0,0.15587382]
[1718661546489,1.14818282,66635.0,66634.0,0.15587382]
[1718661546700,1.23388282,66635.0,66634.0,0.15587382]
[1718661548804,1.2575568,66635.0,66634.0,0.15587382]
[1718661549015,1.23388282,66635.0,66634.0,0.15587382]
[1718661550685,1.23388282,66635.0,66634.0,0.007]
[1718661550686,2.19523907,66635.0,66634.0,0.007]
[1718661550961,2.44796795,66635.0,66634.0,0.007]
[1718661551076,2.44796795,66635.0,66622.0,0.000946]
[1718661551077,1.20881218,66623.0,66622.0,0.000946]
[1718661551284,2.07014779,66623.0,66622.0,0.000946]
[1718661551483,2.21768003,66623.0,66622.0,0.000946]
[1718661551732,2.36250952,66623.0,66622.0,0.000946]
[1718661551931,2.38492427,66623.0,66622.0,0.000946]
[1718661552089,2.31768003,66623.0,66622.0,0.000946]
[1718661552305,2.44556339,66623.0,66622.0,0.000946]
[1718661552585,2.51280763,66623.0,66622.0,0.011946]
[1718661552729,2.51380763,66623.0,66622.0,0.011946]
[1718661552936,2.44656339,66623.0,66622.0,0.011946]
[1718661553749,2.44656339,66623.0,66622.0,0.000946]
[1718661554155,2.39058816,66623.0,66622.0,0.006946]
[1718661554413,2.52176833,66623.0,66622.0,0.006946]
[1718661555929,2.29024406,66623.0,66622.0,0.006946]
[1718661556091,2.39058467,66623.0,66622.0,0.006946]
[1718661556346,2.52176153,66623.0,66622.0,0.006946]
[1718661557025,1.66450218,66615.0,66614.0,0.009394]
[1718661557226,2.17537897,66615.0,66614.0,0.009394]
[1718661557630,2.27537897,66615.0,66614.0,0.009394]
[1718661557856,2.17537897,66615.0,66614.0,0.009394]
[1718661558070,2.6955897,66615.0,66614.0,1e-06]
[1718661558270,2.97945864,66615.0,66614.0,0.006001]
[1718661558830,2.97945864,66615.0,66614.0,1e-06]
[1718661559275,3.07945864,66615.0,66614.0,1e-06]
[1718661559457,3.01220879,66615.0,66614.0,1e-06]
[1718661559856,2.91220879,66615.0,66614.0,1e-06]
[1718661560265,2.91720879,66615.0,66614.0,1e-06]
[1718661561179,2.98444973,66615.0,66614.0,1e-06]
[1718661561383,2.99384373,66615.0,66614.0,1e-06]
[1718661561743,2.99984373,66615.0,66614.0,0.001001]
[1718661562670,2.99978373,66615.0,66614.0,0.001001]
[1718661563408,3.00011009,66615.0,66614.0,0.001001]
[1718661563935,3.02143658,66615.0,66614.0,0.001001]
[1718661564368,2.8902802,66615.0,66614.0,0.001001]
[1718661566514,2.82303926,66615.0,66614.0,0.001001]
[1718661567074,3.14191757,66615.0,66614.0,0.001001]
[1718661567277,3.14191757,66615.0,66611.0,1e-06]
[1718661567278,1.66451918,66612.0,66611.0,1e-06]
[1718661567450,2.28315121,66612.0,66611.0,1e-06]
[1718661567620,2.42735121,66612.0,66611.0,1e-06]
[1718661567818,2.5565912,66612.0,66611.0,1e-06]
[1718661568014,2.4565912,66612.0,66611.0,1e-06]
[1718661568213,2.70930374,66612.0,66611.0,1e-06]
[1718661568531,2.61030374,66612.0,66611.0,1e-06]
[1718661568742,2.71030374,66612.0,66611.0,1e-06]
[1718661568936,2.71530374,66612.0,66611.0,0.001001]
[1718661569322,2.80491384,66612.0,66611.0,0.001001]
[1718661570591,2.61530374,66612.0,66611.0,0.001001]
[1718661570991,2.68249633,66612.0,66611.0,0.001001]
[1718661571623,2.91554974,66612.0,66611.0,0.001001]
[1718661571758,3.01554974,66612.0,66611.0,0.001001]
[1718661572212,3.08273409,66612.0,66611.0,0.001001]
[1718661572782,2.85532279,66612.0,66611.0,0.001001]